fUST/lending_fUST_20240409
["ID","MTS","AMOUNT","RATE_DAILY","PERIOD"]
[321945918,1712646637763,-166.1932629,0.00035613,7]
[321945919,1712646637773,-500.0,0.00035613,7]
[321945920,1712646637782,-176.994702,0.00035613,7]
[321945921,1712646637791,-500.0,0.00035613,7]
[321945922,1712646637800,-306.72243627,0.00035613,7]
[321945923,1712646637810,-161504.65742337,0.00035616,3]
[321945924,1712646637821,-172.4328642,0.00035616,2]
[321945925,1712646637830,-500.0,0.00035616,2]
[321945926,1712646637844,-500.0,0.00035616,2]
[321945927,1712646637853,-500.0,0.00035616,2]
[321945928,1712646637863,-534.75351248,0.00035616,2]
[321945929,1712646637872,-500.0,0.00035616,2]
[321945930,1712646637881,-500.0,0.00035616,2]
[321945931,1712646637891,-500.0,0.00035616,2]
[321945932,1712646637900,-500.0,0.00035616,2]
[321945933,1712646637910,-500.0,0.00035616,2]
[321945934,1712646637921,-500.0,0.00035616,2]
[321945935,1712646637931,-500.0,0.00035616,2]
[321945936,1712646637941,-500.0,0.00035616,2]
[321945937,1712646637951,-500.0,0.00035616,2]
[321945939,1712646637961,-500.0,0.00035616,2]
[321945941,1712646637971,-500.0,0.00035616,2]
[321945945,1712646637982,-500.0,0.00035616,2]
[321945949,1712646637993,-500.0,0.00035616,2]
[321945954,1712646638003,-240.56211982,0.00035616,2]
[321945955,1712646638013,-500.0,0.00035616,2]
[321945957,1712646638023,-500.0,0.00035616,2]
[321945959,1712646638034,-500.0,0.00035616,2]
[321945961,1712646638044,-500.0,0.00035616,2]
[321945963,1712646638053,-501.53891085,0.00035616,2]
[321945966,1712646638065,-500.0,0.00035616,2]
[321945969,1712646638075,-500.0,0.00035616,2]
[321945972,1712646638085,-500.0,0.00035616,2]
[321945974,1712646638095,-500.0,0.00035616,2]
[321945978,1712646638105,-500.0,0.00035616,2]
[321945980,1712646638115,-500.0,0.00035616,2]
[321945982,1712646638125,-166.28019783,0.00035616,2]
[321945985,1712646638135,-500.0,0.00035616,2]
[321945988,1712646638145,-500.0,0.00035616,2]
[321945990,1712646638154,-507.55211452,0.00035616,2]
[321945992,1712646638164,-500.0,0.00035616,2]
[321945994,1712646638174,-500.0,0.00035616,2]
[321945996,1712646638184,-580.11419855,0.00035616,2]
[321945998,1712646638193,-500.0,0.00035616,2]
[321946000,1712646638203,-500.0,0.00035616,2]
[321946002,1712646638213,-500.0,0.00035616,2]
[321946003,1712646638223,-500.0,0.00035616,2]
[321946004,1712646638233,-500.0,0.00035616,2]
[321946005,1712646638243,-500.0,0.00035616,2]
[321946006,1712646638253,-163.97379358,0.00035616,2]
[321946007,1712646638263,-500.0,0.00035616,2]
[321946008,1712646638273,-225.49441251,0.00035616,2]
[321946009,1712646638283,-500.0,0.00035616,2]
[321946010,1712646638292,-500.0,0.00035616,2]
[321946011,1712646638302,-500.0,0.00035616,2]
[321946012,1712646638312,-500.0,0.00035616,2]
[321946013,1712646638322,-500.0,0.00035616,2]
[321946014,1712646638332,-500.0,0.00035616,2]
[321946015,1712646638342,-502.44818286,0.00035616,2]
[321946016,1712646638352,-500.0,0.00035616,2]
[321946017,1712646638362,-500.0,0.00035616,2]
[321946018,1712646638371,-500.0,0.00035616,2]
[321946019,1712646638382,-501.15405258,0.00035616,2]
[321946020,1712646638392,-500.0,0.00035616,2]
[321946021,1712646638402,-500.0,0.00035616,2]
[321946022,1712646638412,-243.84336101,0.00035616,2]
[321946023,1712646638421,-500.0,0.00035616,2]
[321946024,1712646638431,-500.0,0.00035616,2]
[321946025,1712646638441,-500.0,0.00035616,2]
[321946026,1712646638450,-546.11,0.00035616,2]
[321946027,1712646638459,-500.0,0.00035616,2]
[321946028,1712646638468,-500.0,0.00035616,2]
[321946029,1712646638478,-500.0,0.00035616,2]
[321946030,1712646638488,-500.0,0.00035616,2]
[321946031,1712646638497,-500.0,0.00035616,2]
[321946032,1712646638506,-500.0,0.00035616,2]
[321946033,1712646638515,-500.33131698,0.00035616,2]
[321946034,1712646638524,-441.46129472,0.00035616,2]
[321946035,1712646638533,-1317.36,0.00035616,2]
[321946036,1712646638542,-500.0,0.00035616,2]
[321946037,1712646638553,-500.0,0.00035616,2]
[321946038,1712646638563,-500.0,0.00035616,2]
[321946039,1712646638572,-500.0,0.00035616,2]
[321946040,1712646638581,-619.46392019,0.00035616,2]
[321946041,1712646638590,-500.0,0.00035616,2]
[321946042,1712646638599,-500.0,0.00035616,2]
[321946043,1712646638608,-530.4,0.00035616,2]
[321946044,1712646638617,-500.87623615,0.00035616,2]
[321946045,1712646638626,-500.0,0.00035616,2]
[321946046,1712646638635,-807.12,0.00035616,2]
[321946047,1712646638647,-501.35032413,0.00035616,2]
[321946048,1712646638656,-500.0,0.00035616,2]
[321946049,1712646638665,-309.82221017,0.00035616,2]
[321946050,1712646638674,-500.0,0.00035616,2]
[321946051,1712646638683,-500.0,0.00035616,2]
[321946052,1712646638692,-500.0,0.00035616,2]
[321946053,1712646638701,-500.0,0.00035616,2]
[321946054,1712646638710,-500.91291952,0.00035616,2]
[321946055,1712646638719,-500.0,0.00035616,2]
[321946056,1712646638728,-500.0,0.00035616,2]
[321946057,1712646638739,-500.0,0.00035616,2]
[321946058,1712646638748,-500.0,0.00035616,2]
[321946059,1712646638757,-500.0,0.00035616,2]
[321946060,1712646638767,-1403.92,0.00035616,2]
[321946061,1712646638775,-592.07022979,0.00035616,2]
[321946062,1712646638784,-500.0,0.00035616,2]
[321946063,1712646638794,-500.0,0.00035616,2]
[321946064,1712646638803,-291.49532115,0.00035616,2]
[321946065,1712646638812,-500.0,0.00035616,2]
[321946066,1712646638826,-500.0,0.00035616,2]
[321946067,1712646638835,-500.0,0.00035616,2]
[321946068,1712646638845,-500.0,0.00035616,2]
[321946069,1712646638854,-500.0,0.00035616,2]
[321946070,1712646638865,-500.0,0.00035616,2]
[321946071,1712646638874,-500.0,0.00035616,14]
[321946072,1712646638883,-500.0,0.00035616,2]
[321946073,1712646638892,-500.0,0.00035616,2]
[321946074,1712646638902,-500.0,0.00035616,2]
[321946075,1712646638913,-500.0,0.00035616,2]
[321946076,1712646638922,-500.0,0.00035616,2]
[321946077,1712646638932,-500.0,0.00035616,2]
[321946078,1712646638943,-500.0,0.00035616,2]
[321946079,1712646638952,-500.0,0.00035616,2]
[321946080,1712646638961,-500.0,0.00035616,2]
[321946081,1712646638971,-500.0,0.00035616,2]
[321946082,1712646638980,-321.83237999,0.00035616,2]
[321946083,1712646638990,-772.46,0.00035616,2]
[321946084,1712646638999,-500.0,0.00035616,2]
[321946085,1712646639008,-500.0,0.00035616,2]
[321946086,1712646639017,-500.0,0.00035616,2]
[321946087,1712646639027,-500.0,0.00035616,2]
[321946088,1712646639036,-500.0,0.00035616,2]
[321946089,1712646639045,-500.0,0.00035616,2]
[321946090,1712646639055,-500.0,0.00035616,2]
[321946091,1712646639064,-500.0,0.00035616,2]
[321946092,1712646639074,-500.0,0.00035616,2]
[321946093,1712646639083,-500.0,0.00035616,2]
[321946094,1712646639092,-500.0,0.00035616,2]
[321946095,1712646639101,-500.0,0.00035616,2]
[321946098,1712646639228,-500.0,0.00035616,2]
[321946099,1712646639239,-610.2,0.00035616,2]
[321946101,1712646639248,-636.43,0.00035616,2]
[321946102,1712646639258,-790.48,0.00035616,2]
[321946103,1712646639267,-1012.57,0.00035616,2]
[321946104,1712646639276,-2209.03,0.00035616,2]
[321946105,1712646639285,-500.0,0.00035616,2]
[321946106,1712646639294,-500.0,0.00035616,2]
[321946107,1712646639303,-500.0,0.00035616,2]
[321946108,1712646639312,-500.0,0.00035616,2]
[321946109,1712646639321,-500.0,0.00035616,2]
[321946110,1712646639331,-500.0,0.00035616,2]
[321946111,1712646639340,-500.0,0.00035616,2]
[321946112,1712646639350,-500.0,0.00035616,2]
[321946113,1712646639359,-500.0,0.00035616,2]
[321946114,1712646639368,-500.0,0.00035616,2]
[321946115,1712646639377,-500.0,0.00035616,2]
[321946116,1712646639386,-500.0,0.00035616,2]
[321946117,1712646639396,-519.36281964,0.00035616,2]
[321946119,1712646639405,-336.70695733,0.00035616,2]
[321946121,1712646639414,-500.0,0.00035616,2]
[321946123,1712646639423,-500.0,0.00035616,2]
[321946125,1712646639433,-500.0,0.00035616,2]
[321946127,1712646639442,-891.7,0.00035616,2]
[321946128,1712646639451,-500.0,0.00035616,2]
[321946129,1712646639460,-754.99,0.00035616,2]
[321946130,1712646639470,-500.0,0.00035616,2]
[321946131,1712646639480,-500.0,0.00035616,2]
[321946132,1712646639491,-500.0,0.00035616,2]
[321946133,1712646639500,-500.0,0.00035616,2]
[321946134,1712646639510,-500.0,0.00035616,2]
[321946135,1712646639519,-500.0,0.00035616,2]
[321946136,1712646639529,-744.03,0.00035616,2]
[321946137,1712646639538,-500.0,0.00035616,2]
[321946138,1712646639547,-459.24702033,0.00035616,2]
[321946139,1712646639564,-40.75297967,0.00035616,2]
[321946140,1712646639573,-500.0,0.00035616,2]
[321946141,1712646639582,-178.97665317,0.00035616,2]
[321946193,1712646643539,-321.02334683,0.00035616,2]
[321946194,1712646643549,-1000.0,0.00035616,10]
[321946195,1712646643558,-500.0,0.00035616,2]
[321946196,1712646643567,-1000.0,0.00035616,10]
[321946197,1712646643577,-1000.0,0.00035616,10]
[321946198,1712646643586,-500.0,0.00035616,2]
[321946199,1712646643595,-500.0,0.00035616,2]
[321946200,1712646643604,-500.0,0.00035616,2]
[321946201,1712646643613,-500.0,0.00035616,2]
[321946202,1712646643622,-500.0,0.00035616,2]
[321946203,1712646643632,-500.0,0.00035616,2]
[321946204,1712646643641,-506.30224677,0.00035616,2]
[321946205,1712646643650,-500.0,0.00035616,2]
[321946206,1712646643659,-500.0,0.00035616,2]
[321946207,1712646643668,-500.0,0.00035616,2]
[321946208,1712646643678,-500.0,0.00035616,2]
[321946209,1712646643687,-500.0,0.00035616,2]
[321946210,1712646643696,-500.0,0.00035616,2]
[321946211,1712646643705,-500.0,0.00035616,2]
[321946212,1712646643714,-500.37301098,0.00035616,2]
[321946213,1712646643723,-500.33374769,0.00035616,2]
[321946214,1712646643732,-500.0,0.00035616,2]
[321946215,1712646643742,-447.30268506,0.00035616,2]
[321946216,1712646643750,-1543.32,0.00035616,2]
[321946217,1712646643759,-518.94341513,0.00035616,2]
[321946218,1712646643768,-517.01,0.00035616,2]
[321946219,1712646643778,-500.0,0.00035616,2]
[321946220,1712646643787,-500.0,0.00035616,2]
[321946221,1712646643796,-500.81718228,0.00035616,2]
[321946222,1712646643805,-500.0,0.00035616,2]
[321946223,1712646643814,-500.0,0.00035616,2]
[321946224,1712646643823,-500.0,0.00035616,2]
[321946225,1712646643836,-500.0,0.00035616,2]
[321946226,1712646643846,-507.16903718,0.00035616,2]
[321946227,1712646643855,-500.0,0.00035616,2]
[321946228,1712646643864,-500.0,0.00035616,2]
[321946229,1712646643874,-500.0,0.00035616,2]
[321946230,1712646643883,-500.0,0.00035616,2]
[321946231,1712646643892,-414.02794365,0.00035616,2]
[321946232,1712646643902,-500.0,0.00035616,2]
[321946233,1712646643912,-500.0,0.00035616,2]
[321946234,1712646643921,-500.0,0.00035616,2]
[321946235,1712646643930,-500.0,0.00035616,2]
[321946236,1712646643940,-500.0,0.00035616,2]
[321946237,1712646643950,-406.8200688,0.00035616,2]
[321946238,1712646643960,-500.0,0.00035616,2]
[321946239,1712646643969,-500.0,0.00035616,2]
[321946240,1712646643978,-500.0,0.00035616,2]
[321946241,1712646643988,-500.0,0.00035616,2]
[321946242,1712646643997,-500.0,0.00035616,2]
[321946243,1712646644006,-500.0,0.00035616,2]
[321946244,1712646644015,-520.36689179,0.00035616,2]
[321946245,1712646644025,-501.33888658,0.00035616,2]
[321946246,1712646644035,-500.0,0.00035616,2]
[321946247,1712646644044,-500.0,0.00035616,2]
[321946248,1712646644054,-500.0,0.00035616,2]
[321946249,1712646644064,-500.0,0.00035616,2]
[321946250,1712646644073,-500.0,0.00035616,2]
[321946251,1712646644081,-500.0,0.00035616,2]
[321946252,1712646644091,-403.24987524,0.00035616,2]
[321946253,1712646644125,-96.75012476,0.00035616,2]
[321946254,1712646644134,-500.0,0.00035616,2]
[321946255,1712646644145,-500.0,0.00035616,2]
[321946256,1712646644154,-500.0,0.00035616,2]
[321946257,1712646644163,-500.0,0.00035616,2]
[321946258,1712646644172,-320.09795557,0.00035616,2]
[321946259,1712646644182,-500.85014093,0.00035616,2]
[321946260,1712646644190,-501.86581278,0.00035616,2]
[321946261,1712646644200,-516.09989735,0.00035616,2]
[321946262,1712646644209,-670.45,0.00035616,2]
[321946263,1712646644219,-502.01498888,0.00035616,2]
[321946264,1712646644231,-373.86819184,0.00035616,2]
[321946265,1712646644241,-500.0,0.00035616,2]
[321946266,1712646644250,-500.0,0.00035616,2]
[321946267,1712646644260,-500.0,0.00035616,2]
[321946268,1712646644270,-501.20453944,0.00035616,2]
[321946269,1712646644279,-500.0,0.00035616,2]
[321946270,1712646644288,-639.63522035,0.00035616,2]
[321946271,1712646644298,-374.61535197,0.00035616,2]
[321946272,1712646644308,-300.0,0.00035616,2]
[321946273,1712646644317,-500.0,0.00035616,2]
[321946274,1712646644327,-500.0,0.00035616,2]
[321946275,1712646644336,-356.58231325,0.00035616,2]
[321946276,1712646644346,-500.0,0.00035616,2]
[321946277,1712646644355,-500.0,0.00035616,2]
[321946278,1712646644364,-500.0,0.00035616,2]
[321946279,1712646644374,-500.0,0.00035616,2]
[321946280,1712646644383,-536.52,0.00035616,2]
[321946281,1712646644392,-500.0,0.00035616,2]
[321946282,1712646644401,-1000.0,0.00035616,2]
[321946283,1712646644411,-500.0,0.00035616,2]
[321946284,1712646644420,-261.84257433,0.00035616,2]
[321946285,1712646644429,-500.0,0.00035616,2]
[321946286,1712646644438,-2997.71,0.00035616,2]
[321946287,1712646644447,-500.0,0.00035616,2]
[321946288,1712646644456,-502.09778527,0.00035616,2]
[321946289,1712646644465,-500.0,0.00035616,2]
[321946290,1712646644476,-1096.45,0.00035616,2]
[321946291,1712646644487,-500.0,0.00035616,2]
[321946292,1712646644498,-6460.81,0.00035616,2]
[321946293,1712646644507,-500.0,0.00035616,2]
[321946294,1712646644516,-500.0,0.00035616,2]
[321946295,1712646644525,-1190.53,0.00035616,2]
[321946296,1712646644534,-500.0,0.00035616,2]
[321946297,1712646644543,-500.0,0.00035616,2]
[321946298,1712646644553,-2822.82,0.00035616,2]
[321946299,1712646644562,-500.0,0.00035616,2]
[321946300,1712646644571,-1977.02,0.00035616,2]
[321946301,1712646644581,-500.0,0.00035616,2]
[321946302,1712646644591,-500.0,0.00035616,2]
[321946303,1712646644601,-185.61182284,0.00035616,2]
[321946304,1712646644610,-194.70553114,0.00035616,2]
[321946305,1712646644621,-500.0,0.00035616,2]
[321946306,1712646644630,-500.0,0.00035616,2]
[321946307,1712646644638,-500.0,0.00035616,2]
[321946308,1712646644648,-243.47905515,0.00035616,2]
[321946309,1712646644657,-165.15464156,0.00035616,2]
[321946310,1712646644666,-500.0,0.00035616,2]
[321946311,1712646644675,-500.0,0.00035616,2]
[321946312,1712646644686,-500.0,0.00035616,2]
[321946313,1712646644695,-795.26,0.00035616,2]
[321946314,1712646644706,-500.0,0.00035616,2]
[321946315,1712646644715,-500.0,0.00035616,2]
[321946316,1712646644725,-515.5,0.00035616,2]
[321946317,1712646644734,-500.0,0.00035616,2]
[321946318,1712646644745,-5211.1,0.00035616,2]
[321946319,1712646644754,-500.0,0.00035616,2]
[321946320,1712646644764,-3047.19,0.00035616,2]
[321946321,1712646644773,-563.0,0.00035616,2]
[321946322,1712646644782,-1260.29,0.00035616,2]
[321946323,1712646644791,-500.0,0.00035616,2]
[321946324,1712646644800,-500.0,0.00035616,2]
[321946325,1712646644809,-500.0,0.00035616,2]
[321946326,1712646644818,-2495.84,0.00035616,2]
[321946327,1712646644828,-500.0,0.00035616,2]
[321946328,1712646644840,-216.06397761,0.00035616,2]
[321946329,1712646644850,-500.0,0.00035616,2]
[321946330,1712646644859,-500.0,0.00035616,2]
[321946331,1712646644868,-1413.05,0.00035616,2]
[321946332,1712646644877,-500.0,0.00035616,2]
[321946333,1712646644886,-1862.09,0.00035616,2]
[321946334,1712646644896,-500.0,0.00035616,2]
[321946335,1712646644905,-1016.98,0.00035616,2]
[321946336,1712646644914,-757.13,0.00035616,2]
[321946337,1712646644924,-500.0,0.00035616,2]
[321946338,1712646644933,-634.47,0.00035616,2]
[321946339,1712646644943,-1493.88,0.00035616,2]
[321946340,1712646644952,-1563.98,0.00035616,2]
[321946341,1712646644961,-500.0,0.00035616,2]
[321946342,1712646644971,-500.0,0.00035616,2]
[321946343,1712646644981,-500.0,0.00035616,2]
[321946344,1712646644991,-1154.11,0.00035616,2]
[321946345,1712646645001,-1671.64,0.00035616,2]
[321946346,1712646645010,-500.0,0.00035616,2]
[321946347,1712646645019,-500.0,0.00035616,2]
[321946348,1712646645029,-295.76767527,0.00035616,2]
[321946349,1712646645038,-975.28,0.00035616,2]
[321946350,1712646645047,-2595.67,0.00035616,2]
[321946351,1712646645056,-500.0,0.00035616,2]
[321946352,1712646645065,-500.0,0.00035616,2]
[321946353,1712646645074,-500.0,0.00035616,2]
[321946354,1712646645084,-154.98450155,0.00035616,2]
[321946355,1712646645093,-500.0,0.00035616,2]
[321946356,1712646645102,-500.0,0.00035616,2]
[321946358,1712646645217,-500.0,0.00035616,2]
[321946359,1712646645229,-591.47,0.00035616,2]
[321946360,1712646645240,-500.0,0.00035616,2]
[321946361,1712646645250,-500.0,0.00035616,2]
[321946362,1712646645259,-13491.53,0.00035616,2]
[321946363,1712646645269,-500.0,0.00035616,2]
[321946364,1712646645278,-500.0,0.00035616,2]
[321946365,1712646645288,-500.0,0.00035616,2]
[321946366,1712646645297,-500.0,0.00035616,2]
[321946367,1712646645307,-500.0,0.00035616,2]
[321946368,1712646645316,-17437.44,0.00035616,2]
[321946371,1712646645325,-1180.37,0.00035616,2]
[321946373,1712646645335,-552.64,0.00035616,2]
[321946374,1712646645344,-500.0,0.00035616,2]
[321946375,1712646645353,-500.0,0.00035616,2]
[321946376,1712646645363,-500.0,0.00035616,2]
[321946377,1712646645372,-500.0,0.00035616,2]
[321946378,1712646645382,-500.0,0.00035616,2]
[321946379,1712646645392,-3572.72,0.00035616,2]
[321946380,1712646645401,-500.0,0.00035616,2]
[321946382,1712646645411,-1581.56,0.00035616,2]
[321946384,1712646645420,-500.0,0.00035616,2]
[321946385,1712646645429,-500.0,0.00035616,2]
[321946386,1712646645440,-5576.0,0.00035616,2]
[321946387,1712646645449,-500.0,0.00035616,2]
[321946388,1712646645459,-834.24,0.00035616,2]
[321946389,1712646645469,-500.0,0.00035616,2]
[321946390,1712646645479,-500.0,0.00035616,2]
[321946391,1712646645489,-321.69068777,0.00035616,7]
[321946392,1712646645498,-500.0,0.00035616,2]
[321946393,1712646645508,-1681.94,0.00035616,2]
[321946394,1712646645518,-500.0,0.00035616,2]
[321946395,1712646645526,-735.41,0.00035616,2]
[321946396,1712646645536,-500.0,0.00035616,2]
[321946397,1712646645545,-645.1,0.00035616,2]
[321946398,1712646645554,-500.0,0.00035616,2]
[321946399,1712646645563,-501.45372642,0.00035616,2]
[321946400,1712646645573,-500.0,0.00035616,2]
[321946401,1712646645582,-1774.12,0.00035616,2]
[321946402,1712646645591,-501.27388295,0.00035616,2]
[321946403,1712646645601,-500.0,0.00035616,2]
[321946404,1712646645610,-732.68,0.00035616,10]
[321946405,1712646645619,-702.19548788,0.00035616,2]
[321946406,1712646645629,-1814.34722925,0.00035621,30]
[321946407,1712646645638,-406.22668542,0.0003579,2]
[321946408,1712646645647,-2352.06397576,0.000358,4]
[321946409,1712646645657,-18583.48996711,0.00035889,4]
[321946410,1712646645673,-9558.93336477,0.00035889,4]
[321946502,1712647593348,1025.24918959,0.00015,14]
[321946503,1712647628099,-157.26509838,0.00026082,2]
[321946504,1712647628120,-154.90705577,0.00026082,2]
[321946505,1712647628142,-959.02353219,0.00026082,2]
[321946520,1712647766113,-868.54910044,0.00022971,2]
[321946521,1712647766135,-781.78611462,0.00022972,2]
[321946522,1712647766155,-5566.47266521,0.00022972,2]
[321946523,1712647766175,-271.89359431,0.00022972,2]
[321946524,1712647766194,-188.6336911,0.00022972,2]
[321946525,1712647766215,-154.90705577,0.00022972,2]
[321946526,1712647766234,-3718.21894048,0.00022973,2]
[321946527,1712647766253,-154.90705577,0.00022973,2]
[321946528,1712647766273,-473.2366857,0.00022973,2]
[321946529,1712647766292,-154.90705577,0.00022973,2]
[321946530,1712647766311,-303.81962515,0.00022973,2]
[321946531,1712647766332,-924.88179764,0.00022973,2]
[321946532,1712647766352,-689.18078323,0.00022974,2]
[321946533,1712647766373,-638.05192735,0.00022974,2]
[321946534,1712647766394,-546.04585195,0.00022974,2]
[321946535,1712647766414,-205.70180304,0.00022975,2]
[321946536,1712647766434,-300.0,0.00022975,2]
[321946537,1712647766454,-300.0,0.00022975,2]
[321946538,1712647766474,-193.0126642,0.00022975,2]
[321946539,1712647766494,-8879.50410471,0.00022975,2]
[321946540,1712647769316,-1131.94892897,0.00022971,2]
[321946541,1712647769338,-530.19178331,0.00022971,2]
[321946542,1712647773134,-1335.81717902,0.00022971,2]
[321946543,1712647773153,-581.86154743,0.00022971,2]
[321946544,1712647773173,-539.50441191,0.00022975,2]
[321946545,1712647773192,-22745.90339692,0.00022975,2]
[321946546,1712647773216,-22787.48722297,0.00022976,2]
[321946631,1712647832760,-154.90705577,0.00022966,2]
[321946633,1712647832770,-206.90794873,0.00022967,2]
[321946639,1712647832846,-400.0,0.00022967,2]
[321947205,1712647838220,-279.88764783,0.00022967,2]
[321947207,1712647838230,-300.0,0.00022968,2]
[321947209,1712647838240,-300.0,0.00022968,2]
[321947211,1712647838249,-154.90705577,0.00022969,2]
[321947213,1712647838259,-282.31285316,0.00022969,2]
[321947215,1712647838268,-3137.24198449,0.00022969,2]
[321947217,1712647838278,-211.40870572,0.0002297,2]
[321947218,1712647838287,-1311.56877551,0.0002297,2]
[321947221,1712647838300,-5593.6637557,0.0002297,2]
[321947222,1712647838310,-207.24041701,0.00022975,2]
[321947224,1712647838319,-154.90705577,0.00022975,2]
[321947226,1712647838328,-2112.51277703,0.00022976,2]
[321947227,1712647838338,-242.74204017,0.00023869,2]
[321947228,1712647838348,-156.0311525,0.0002387,2]
[321947229,1712647838358,-508.67412844,0.00023982,2]
[321947230,1712647838367,-216.012721,0.00024294,2]
[321947231,1712647838377,-420.0,0.00024934,2]
[321947232,1712647838387,-420.0,0.00025265,2]
[321947233,1712647838397,-348.49978865,0.00026082,2]
[321947234,1712647838406,-175.540888,0.00026092,2]
[321947235,1712647838415,-156.78359481,0.00026709,2]
[321947236,1712647838426,-587.0,0.00027068,2]
[321947237,1712647838435,-160.300413,0.00027397,2]
[321947238,1712647838446,-156.03115249,0.00027751,2]
[321947239,1712647838456,-587.0,0.00027791,2]
[321947240,1712647838467,-505.38124548,0.00028,2]
[321947241,1712647838478,-508.67412844,0.00028982,2]
[321947242,1712647838488,-823.0,0.00029385,2]
[321947243,1712647838498,-397.22395761,0.000299,4]
[321947244,1712647838508,-500.0,0.00029999,2]
[321947245,1712647838517,-478.23935679,0.00029999,2]
[321947246,1712647838527,-500.0,0.00029999,2]
[321947247,1712647838536,-500.0,0.00029999,2]
[321947248,1712647838546,-500.0,0.00029999,2]
[321947249,1712647838556,-500.0,0.00029999,2]
[321947250,1712647838565,-500.0,0.00029999,2]
[321947251,1712647838574,-500.0,0.00029999,2]
[321947252,1712647838584,-500.0,0.00029999,2]
[321947253,1712647838593,-287.5687904,0.00029999,2]
[321947254,1712647838602,-500.0,0.00029999,2]
[321947255,1712647838611,-500.0,0.00029999,2]
[321947256,1712647838621,-500.0,0.00029999,2]
[321947257,1712647838630,-500.0,0.00029999,2]
[321947258,1712647838639,-500.0,0.00029999,2]
[321947259,1712647838649,-500.0,0.00029999,2]
[321947260,1712647838658,-500.0,0.00029999,2]
[321947261,1712647838667,-500.0,0.00029999,2]
[321947262,1712647838679,-500.0,0.00029999,2]
[321947263,1712647838689,-185.09113303,0.00029999,2]
[321947264,1712647838698,-500.0,0.00029999,2]
[321947265,1712647838708,-500.0,0.00029999,2]
[321947266,1712647838717,-500.0,0.00029999,2]
[321947267,1712647838727,-500.0,0.00029999,2]
[321947268,1712647838736,-500.0,0.00029999,2]
[321947269,1712647838746,-500.0,0.00029999,2]
[321947270,1712647838755,-500.0,0.00029999,2]
[321947271,1712647838765,-500.0,0.00029999,2]
[321947272,1712647838774,-500.0,0.00029999,2]
[321947273,1712647838783,-500.0,0.00029999,2]
[321947274,1712647838793,-500.0,0.00029999,2]
[321947275,1712647838802,-500.0,0.00029999,2]
[321947276,1712647838811,-500.0,0.00029999,2]
[321947277,1712647838820,-553.45249616,0.00029999,2]
[321947278,1712647838830,-500.0,0.00029999,2]
[321947279,1712647838839,-500.0,0.00029999,2]
[321947280,1712647838848,-300.00522229,0.00029999,2]
[321947281,1712647838858,-228.04797225,0.00029999,2]
[321947282,1712647838867,-54133.19770205,0.0003,30]
[321947283,1712647838877,-154.90705577,0.0003,4]
[321947284,1712647838886,-319.0,0.0003,2]
[321947285,1712647838895,-823.0,0.0003057,2]
[321947286,1712647838905,-397.22395761,0.00031072,5]
[321947287,1712647838918,-156.03115249,0.00031633,2]
[321947288,1712647838929,-1152.0,0.000319,2]
[321947289,1712647838940,-397.22395761,0.00032245,5]
[321947290,1712647838949,-925.69177167,0.000323,4]
[321947291,1712647838958,-857.26746477,0.00032876,4]